bitfinex/quotes_BTCUSD_20260125
["timestamp","ask_amount","ask_price","bid_price","bid_amount"]
[1769365148286,0.13461867,87660.0,87637.0,0.02421223]
[1769365148555,0.24801102,87659.0,87638.0,0.01141057]
[1769365148689,0.11339235,87658.0,87638.0,0.01141057]
[1769365148893,0.13461867,87666.0,87646.0,0.01140953]
[1769365149120,0.13461867,87669.0,87648.0,0.12787359]
[1769365149422,0.13461867,87668.0,87648.0,0.12787359]
[1769365149619,0.12019735,87671.0,87643.0,0.01140992]
[1769365149792,0.25481602,87671.0,87647.0,0.12787359]
[1769365150024,0.25481602,87671.0,87655.0,0.01140836]
[1769365150025,0.13461867,87671.0,87655.0,0.01140836]
[1769365150360,0.000514,87676.0,87652.0,1.14791881]
[1769365150756,0.13461867,87674.0,87652.0,1.14791881]
[1769365150974,0.13461867,87674.0,87648.0,0.15064328]
[1769365151437,0.13461867,87673.0,87648.0,0.16205255]
[1769365151647,0.13461867,87673.0,87649.0,0.11160278]
[1769365152481,0.13461867,87671.0,87649.0,0.11160278]
[1769365153438,0.13461867,87668.0,87649.0,0.11160278]
[1769365153700,0.13461867,87669.0,87649.0,0.12301192]
[1769365154260,0.12305874,87679.0,87649.0,0.12301192]
[1769365154459,0.12305874,87679.0,87650.0,1.20290396]
[1769365154674,0.12305874,87679.0,87651.0,0.00890586]
[1769365154865,0.12305874,87679.0,87653.0,0.11598814]
[1769365155069,0.12305874,87679.0,87654.0,1.05062811]
[1769365155718,0.37335093,87680.0,87650.0,0.05498515]
[1769365156047,0.37335093,87680.0,87641.0,0.12735366]
[1769365156048,0.01140667,87668.0,87642.0,0.12787359]
[1769365156168,0.25003163,87670.0,87643.0,1.05201505]
[1769365156368,0.25003163,87670.0,87643.0,1.05062811]
[1769365157132,0.0114068,87667.0,87643.0,1.05062811]
[1769365157693,0.01140784,87659.0,87643.0,1.05062811]
[1769365157893,0.01140706,87665.0,87644.0,0.11160278]
[1769365158218,0.01140797,87658.0,87644.0,0.11160278]
[1769365158432,0.01140823,87656.0,87645.0,0.00114511]
[1769365158631,0.01140836,87655.0,87645.0,0.00114511]
[1769365158830,0.01140797,87658.0,87645.0,0.00114511]
[1769365159029,1.13331597,87855.0,87646.0,0.11160278]
[1769365159030,0.06845278,87652.0,87646.0,0.11160278]
[1769365159287,0.01140914,87649.0,87646.0,0.11160278]
[1769365159508,0.01140888,87651.0,87646.0,0.11160278]
[1769365159732,0.01140849,87654.0,87646.0,0.11160278]
[1769365159942,0.0114081,87657.0,87646.0,0.11160278]
[1769365160157,0.0114081,87657.0,87647.0,0.10733626]
[1769365160369,0.01140836,87655.0,87647.0,0.10733626]
[1769365160550,0.01140823,87656.0,87647.0,0.10733626]
[1769365160857,0.01140628,87671.0,87657.0,1.05062811]
[1769365161121,0.12513998,87670.0,87658.0,0.12787359]
[1769365161298,0.11373357,87669.0,87659.0,0.11160278]
[1769365161515,0.11373357,87668.0,87659.0,0.11160278]
[1769365161724,0.11373357,87667.0,87659.0,0.11160278]
[1769365161928,0.11373357,87666.0,87659.0,0.11160278]
[1769365162135,0.11373357,87665.0,87659.0,0.11160278]
[1769365162394,0.01140615,87672.0,87660.0,1.16223089]
[1769365163023,0.0114051,87680.0,87661.0,0.12735366]
[1769365163227,0.01140484,87682.0,87659.0,0.12787359]
[1769365163228,0.01140523,87679.0,87664.0,1.17798177]
[1769365163433,0.01140562,87676.0,87664.0,1.17798177]
[1769365163639,0.06843435,87676.0,87665.0,0.11160278]
[1769365163863,0.01140589,87674.0,87665.0,0.11160278]
[1769365164074,0.01140575,87675.0,87665.0,0.11160278]
[1769365164285,0.01140602,87673.0,87665.0,0.11160278]
[1769365164493,0.01154785,87675.0,87665.0,0.11160278]
[1769365164694,0.01154785,87675.0,87666.0,0.11160278]
[1769365164894,0.01140602,87673.0,87666.0,0.11160278]
[1769365165137,0.0001421,87675.0,87666.0,0.11160278]
[1769365165362,0.01140589,87674.0,87665.0,1.05062811]
[1769365165565,0.01140602,87673.0,87665.0,1.05062811]
[1769365165783,0.01154785,87675.0,87665.0,1.05062811]
[1769365166623,0.0001421,87675.0,87665.0,1.05062811]
[1769365166795,0.01154785,87675.0,87665.0,1.05062811]
[1769365166974,0.0001421,87675.0,87666.0,1.16223089]
[1769365167182,0.05717093,87675.0,87666.0,0.11160278]
[1769365167384,0.05717093,87675.0,87661.0,1.05062811]
[1769365167385,0.01140654,87669.0,87661.0,1.05062811]
[1769365167733,0.01140654,87669.0,87629.0,0.80157117]
[1769365167734,0.01140706,87665.0,87646.0,1.05062811]
[1769365167937,0.12983428,87674.0,87649.0,1.05062811]
[1769365168141,0.12983428,87674.0,87650.0,0.11201928]
[1769365168142,0.05703364,87668.0,87650.0,0.11201928]
[1769365168374,0.01140654,87669.0,87651.0,1.05062811]
[1769365168587,0.01140667,87668.0,87652.0,0.00041833]
[1769365168819,0.01140628,87671.0,87652.0,0.00041833]
[1769365169021,0.01140628,87671.0,87652.0,1.05062811]
[1769365169227,0.01140641,87670.0,87653.0,0.1120211]
[1769365169627,0.0114068,87667.0,87653.0,0.1120211]
[1769365169996,0.22812061,87673.0,87653.0,0.1120211]
[1769365170171,0.01140784,87659.0,87636.0,0.12735366]
[1769365170373,0.01140784,87659.0,87639.0,1.05062811]
[1769365170569,0.01140784,87659.0,87641.0,1.17798177]
[1769365170780,0.01140758,87661.0,87641.0,1.05062811]
[1769365170981,0.01140758,87661.0,87642.0,1.28304458]
[1769365171237,0.01140667,87668.0,87647.0,1.05062811]
[1769365171426,0.01140693,87666.0,87649.0,1.17798177]
[1769365171674,0.01140641,87670.0,87647.0,1.05062811]
[1769365171887,0.01140654,87669.0,87650.0,0.12735366]
[1769365172090,0.01140589,87674.0,87645.0,0.12787359]
[1769365172091,0.01154785,87675.0,87653.0,1.05062811]
[1769365172265,0.0001421,87675.0,87657.0,1.05062811]
[1769365172500,0.01154785,87675.0,87657.0,1.05062811]
[1769365172721,0.01140589,87674.0,87657.0,1.05062811]
[1769365172928,0.01154785,87675.0,87657.0,1.05062811]
[1769365173129,0.01140589,87674.0,87658.0,0.0883535]
[1769365173468,0.01154785,87675.0,87658.0,0.0883535]
[1769365173898,0.0001421,87675.0,87658.0,0.0883535]
[1769365174322,0.11393217,87674.0,87659.0,0.12787359]
[1769365174647,0.0001421,87675.0,87663.0,0.14131038]
[1769365174849,0.0001421,87675.0,87664.0,1.12501971]
[1769365175991,0.01140589,87674.0,87664.0,0.0269184]
[1769365176226,0.0570301,87673.0,87664.0,0.0269184]
[1769365176465,0.0001421,87675.0,87651.0,0.02552273]
[1769365176466,0.0114068,87667.0,87651.0,0.02552273]
[1769365176676,0.06844088,87667.0,87651.0,0.02552273]
[1769365176880,0.01140693,87666.0,87651.0,0.02552273]
[1769365177088,0.14134997,87670.0,87651.0,0.02552273]
[1769365177301,0.01140602,87673.0,87654.0,1.09810131]
[1769365177501,0.05703206,87670.0,87656.0,1.09810131]
[1769365177718,0.01140628,87671.0,87655.0,0.25291316]
[1769365177926,0.01140628,87671.0,87655.0,0.14131038]
[1769365178534,0.01140693,87666.0,87655.0,0.14131038]
[1769365178742,0.06843899,87670.0,87656.0,0.00031102]
[1769365178946,0.06843549,87674.0,87652.0,0.00031102]
[1769365179156,0.01140602,87673.0,87652.0,0.00031102]
[1769365179387,0.01140602,87673.0,87653.0,0.11160278]
[1769365179589,0.05717124,87675.0,87653.0,0.11160278]
[1769365179590,0.0001421,87675.0,87654.0,0.00031101]
[1769365179829,0.01154785,87675.0,87655.0,0.00031095]
[1769365180005,0.0001421,87675.0,87657.0,1.09810131]
[1769365180213,0.0001421,87675.0,87658.0,0.08212446]
[1769365181024,0.01140406,87688.0,87660.0,0.14131038]
[1769365181233,0.14134997,87692.0,87663.0,1.09810131]
[1769365181513,0.14134997,87692.0,87660.0,0.38490074]
[1769365181514,0.17089826,87702.0,87675.0,0.12787359]
[1769365181817,0.0059387,87712.0,87669.0,0.14131038]
[1769365181818,0.0114038,87690.0,87669.0,0.14131038]
[1769365182018,1.14106833,87695.0,87675.0,0.12787359]
[1769365182228,0.01140302,87696.0,87675.0,0.12787359]
[1769365182640,0.01140289,87697.0,87676.0,0.14131038]
[1769365182846,0.01140289,87697.0,87677.0,1.26633009]
[1769365183058,0.22665122,87701.0,87678.0,0.14131038]
[1769365183268,0.01140276,87698.0,87681.0,1.09810131]
[1769365183468,0.01140289,87697.0,87681.0,1.23941169]
[1769365183691,0.06841554,87700.0,87681.0,1.23941169]
[1769365183843,0.0114025,87700.0,87682.0,0.11160278]
[1769365184266,0.01140328,87694.0,87682.0,0.11160278]
[1769365184463,0.01140406,87688.0,87682.0,0.11160278]
[1769365184616,0.01140406,87688.0,87674.0,0.14131038]
[1769365184985,0.01140419,87687.0,87675.0,0.12787359]
[1769365185175,0.01140432,87686.0,87675.0,0.12787359]
[1769365185383,0.01140445,87685.0,87675.0,0.12787359]
[1769365185617,0.01140432,87686.0,87676.0,0.11160278]
[1769365186029,0.01140406,87688.0,87676.0,0.11160278]
[1769365186420,0.01140445,87685.0,87676.0,0.11160278]
[1769365186617,0.11384043,87684.0,87676.0,0.11160278]
[1769365186830,0.01140419,87687.0,87676.0,0.11160278]
[1769365187055,0.11384012,87686.0,87677.0,0.10733626]
[1769365187263,0.11384012,87685.0,87677.0,0.10733626]
[1769365187474,0.11384012,87684.0,87677.0,0.10733626]
[1769365187712,0.0004765,87686.0,87661.0,0.14131038]
[1769365187713,0.01140589,87674.0,87661.0,0.14131038]
[1769365187933,0.0004765,87686.0,87663.0,0.12787359]
[1769365187934,0.14134997,87682.0,87663.0,0.12787359]
[1769365188142,0.11384027,87681.0,87674.0,0.01]
[1769365188359,0.11384027,87680.0,87674.0,0.01]
[1769365188573,0.0004765,87686.0,87674.0,1.10810131]
[1769365188783,0.01431123,87699.0,87679.0,0.14131038]
[1769365188997,0.13669155,87707.0,87682.0,1.09810131]
[1769365189210,0.13669155,87707.0,87677.0,0.12787359]
[1769365189211,0.1810416,87701.0,87686.0,1.09810131]
[1769365189415,0.01140276,87698.0,87687.0,0.14131038]
[1769365189629,0.03889327,87701.0,87687.0,1.23941169]
[1769365189835,0.01140289,87697.0,87688.0,0.11160278]
[1769365190036,0.01140276,87698.0,87688.0,0.11160278]
[1769365190240,0.01140289,87697.0,87688.0,0.11160278]
[1769365190668,0.13669155,87717.0,87688.0,0.11160278]
[1769365190882,0.0001421,87714.0,87700.0,0.37335093]
[1769365191120,0.0001421,87714.0,87699.0,0.14131038]
[1769365191372,0.0001421,87714.0,87700.0,1.09810131]
[1769365191553,0.0001421,87714.0,87681.0,0.12787359]
[1769365191554,0.0001421,87714.0,87702.0,1.09810131]
[1769365191764,0.01140107,87711.0,87703.0,0.11160278]
[1769365191973,0.0001421,87714.0,87677.0,0.01140549]
[1769365191974,0.01140094,87712.0,87691.0,0.14131038]
[1769365192180,0.01140094,87712.0,87694.0,0.26918397]
[1769365192181,0.01140107,87711.0,87694.0,0.26918397]
[1769365192390,0.01140081,87713.0,87695.0,1.09810131]
[1769365192621,0.0001421,87714.0,87695.0,1.09810131]
[1769365192826,0.01154278,87714.0,87695.0,1.09810131]
[1769365193033,0.01154278,87714.0,87696.0,0.11160278]
[1769365193245,0.01140081,87713.0,87696.0,0.11160278]
[1769365194100,0.0001421,87714.0,87697.0,1.09810131]
[1769365194304,0.01140094,87712.0,87697.0,1.09810131]
[1769365194517,0.01154278,87714.0,87697.0,1.09810131]
[1769365194730,0.01140133,87709.0,87698.0,0.10733626]
[1769365194951,0.01140185,87705.0,87698.0,0.10733626]
[1769365195239,0.14149207,87714.0,87677.0,0.12787359]
[1769365195240,0.0114012,87710.0,87687.0,1.09810131]
[1769365195491,0.0114012,87710.0,87692.0,0.14131038]
[1769365195492,0.01140159,87707.0,87692.0,0.14131038]
[1769365195702,0.01140172,87706.0,87693.0,0.00141383]
[1769365195916,0.1791778,87714.0,87694.0,0.11160278]
[1769365196125,0.1791778,87714.0,87696.0,1.09810131]
[1769365196126,0.01140094,87712.0,87696.0,1.09810131]
[1769365196338,0.01140055,87715.0,87700.0,1.09810131]
[1769365196518,0.06840352,87715.0,87702.0,1.09810131]
[1769365196757,0.01140081,87713.0,87704.0,0.14131038]
[1769365196971,0.01139938,87724.0,87704.0,0.14131038]
[1769365197180,0.22862521,87725.0,87704.0,0.14131038]
[1769365197181,0.01140042,87716.0,87704.0,0.14131038]
[1769365197390,0.01140055,87715.0,87704.0,0.14131038]
[1769365197593,0.01140094,87712.0,87705.0,0.02487887]
[1769365197801,0.01140107,87711.0,87705.0,0.02487887]
[1769365198002,0.0114012,87710.0,87705.0,0.02487887]
[1769365198411,0.01140107,87711.0,87705.0,0.02487887]
[1769365198623,0.01140055,87715.0,87705.0,0.02487887]
[1769365198834,0.01140198,87704.0,87701.0,0.14131038]
[1769365199036,0.01140146,87708.0,87701.0,0.14131038]
[1769365199245,0.01140159,87707.0,87701.0,0.14131038]
[1769365199677,1.5170773,87720.0,87701.0,0.14131038]
[1769365199945,1.14372637,87720.0,87702.0,0.11160278]
[1769365200467,0.78935202,87716.0,87702.0,0.11160278]
[1769365200681,0.11352958,87715.0,87700.0,0.0001421]
[1769365200884,0.11352958,87714.0,87700.0,0.0001421]
[1769365201099,0.11352958,87713.0,87700.0,0.0001421]
[1769365201312,0.11352958,87712.0,87701.0,0.14131038]
[1769365201547,0.11352958,87711.0,87702.0,0.15545563]
[1769365201753,0.0908662,87720.0,87700.0,0.0001421]
[1769365201754,0.11352958,87710.0,87700.0,0.0001421]
[1769365201967,0.9028816,87709.0,87688.0,0.01140406]
[1769365202183,0.11352958,87708.0,87690.0,0.14131038]
[1769365202389,0.90274092,87707.0,87691.0,0.11160278]
[1769365202600,0.14149196,87709.0,87683.0,0.14131038]
[1769365202601,0.78921134,87705.0,87683.0,0.14131038]
[1769365202808,0.78921134,87700.0,87683.0,0.14131038]
[1769365203013,0.11352958,87699.0,87683.0,0.14131038]
[1769365203218,0.10352958,87698.0,87691.0,0.16793179]
[1769365203395,0.00014199,87709.0,87691.0,0.16793179]
[1769365205272,0.0006387,87725.0,87704.0,1.09300109]
[1769365205273,0.0908662,87719.0,87704.0,1.09300109]
[1769365205478,0.0006387,87725.0,87706.0,0.16793179]
[1769365205699,0.0006387,87725.0,87708.0,1.09300109]
[1769365205903,0.0908662,87724.0,87709.0,0.16793179]
[1769365206347,0.0915049,87725.0,87709.0,1.09300109]
[1769365206548,0.0006387,87725.0,87710.0,0.16793179]
[1769365207045,0.0006387,87725.0,87714.0,0.01140068]
[1769365207255,0.0004,87733.0,87720.0,0.0113999]
[1769365207466,0.0004,87733.0,87719.0,1.10440112]
[1769365207664,0.0004,87733.0,87722.0,0.16793179]
[1769365207889,0.0004,87733.0,87724.0,0.16793179]
[1769365209096,0.0004,87733.0,87725.0,1.09300109]
[1769365209301,0.0908662,87746.0,87729.0,0.16793179]
[1769365209517,1.26319965,87753.0,87731.0,0.05]
[1769365209518,0.0908662,87747.0,87731.0,0.05]
[1769365209718,0.0908662,87748.0,87731.0,0.05]
[1769365210558,0.0908662,87748.0,87732.0,0.16793179]
[1769365211264,0.0908662,87747.0,87732.0,0.16793179]
[1769365211474,0.0908662,87748.0,87733.0,0.09070312]
[1769365212145,0.0908662,87750.0,87734.0,0.16793179]
[1769365212750,0.09133997,87750.0,87734.0,0.16793179]
[1769365212973,0.09133997,87750.0,87737.0,0.16793179]
[1769365213155,0.00047377,87750.0,87737.0,0.16793179]
[1769365213359,0.00047377,87750.0,87738.0,0.11160278]
[1769365213564,0.00047377,87750.0,87737.0,0.16793179]
[1769365215262,0.11340052,87749.0,87737.0,0.16793179]
[1769365215491,0.11340052,87748.0,87737.0,0.16793179]
[1769365215681,0.11340052,87747.0,87737.0,0.16793179]
[1769365215845,0.11340052,87746.0,87737.0,0.16793179]
[1769365216047,0.11340052,87745.0,87738.0,0.11160278]
[1769365216246,0.11340052,87744.0,87739.0,0.1642519]
[1769365216490,0.11340052,87743.0,87741.0,0.1642519]
[1769365216664,0.11340052,87742.0,87733.0,0.1642519]
[1769365216880,0.11340052,87741.0,87737.0,1.15468395]
[1769365217081,0.11340052,87740.0,87739.0,1.31893585]
[1769365217620,0.00047377,87750.0,87740.0,0.1642519]
[1769365217813,0.11337052,87749.0,87740.0,0.1642519]
[1769365218014,0.11337052,87748.0,87740.0,0.1642519]
[1769365218189,0.11337052,87747.0,87742.0,0.1642519]
[1769365218368,0.11337052,87746.0,87742.0,0.1642519]
[1769365218563,0.11337052,87745.0,87742.0,0.1642519]
[1769365218767,0.00047377,87750.0,87742.0,0.1642519]
[1769365219206,0.00047377,87750.0,87743.0,1.15468395]
[1769365219448,0.0908662,87759.0,87747.0,0.1642519]
[1769365219762,0.00014201,87759.0,87747.0,0.1642519]
[1769365219964,0.00014201,87759.0,87749.0,0.1642519]
[1769365220197,0.00014201,87759.0,87750.0,0.1642519]
[1769365220342,0.00014201,87759.0,87751.0,0.27585468]
[1769365221139,0.00014201,87759.0,87752.0,0.1642519]
[1769365221385,0.00014201,87759.0,87753.0,0.1642519]
[1769365221581,0.00014201,87759.0,87755.0,0.1642519]
[1769365223806,1.13692664,87779.0,87756.0,1.15468395]
[1769365224011,0.0908662,87776.0,87760.0,0.1642519]
[1769365224213,1.13692664,87776.0,87760.0,0.1642519]
[1769365224858,1.13692664,87776.0,87757.0,0.0590192]
[1769365225015,1.28145272,87774.0,87757.0,0.0590192]
[1769365225221,1.28145272,87774.0,87753.0,0.1642519]
[1769365225888,1.28145272,87774.0,87754.0,0.1642519]
[1769365226126,1.28145272,87774.0,87755.0,0.1642519]
[1769365226680,1.13692664,87769.0,87740.0,0.1642519]
[1769365226940,1.13692664,87765.0,87742.0,0.1642519]
[1769365227111,1.27701969,87763.0,87742.0,0.1642519]
[1769365227322,0.87365706,87757.0,87740.0,0.00014201]
[1769365227525,1.13117792,87750.0,87740.0,0.00014201]
[1769365227885,1.08355323,87750.0,87740.0,0.00014201]
[1769365228732,1.0352033,87750.0,87740.0,0.00014201]
[1769365228948,0.98685338,87750.0,87740.0,0.00014201]
[1769365229192,0.5503816,87750.0,87740.0,0.00014201]
[1769365229602,0.14013136,87764.0,87740.0,0.00014201]
[1769365229812,0.0908662,87771.0,87746.0,1.15468395]
[1769365230015,0.0908662,87771.0,87747.0,0.1642519]
[1769365230217,0.17512,87779.0,87748.0,1.15468395]
[1769365230218,0.23340291,87772.0,87748.0,1.15468395]
[1769365230419,0.14253671,87772.0,87749.0,0.1642519]
[1769365230669,0.06835425,87778.0,87749.0,0.1642519]
[1769365230670,0.0908662,87775.0,87752.0,0.1642519]
[1769365230880,0.11331868,87774.0,87754.0,0.1642519]
[1769365231091,0.11331868,87773.0,87757.0,1.15468395]
[1769365231303,0.11331868,87772.0,87757.0,1.31893585]
[1769365231515,0.11331868,87771.0,87759.0,0.1642519]
[1769365231740,0.11331868,87770.0,87759.0,0.1642519]
[1769365232015,0.20503853,87788.0,87758.0,1.26628673]
[1769365232016,0.0908662,87784.0,87763.0,0.17564622]
[1769365232227,0.15459704,87789.0,87763.0,0.17564622]
[1769365232228,0.0908662,87788.0,87765.0,0.1642519]
[1769365232433,0.01139133,87786.0,87766.0,0.27585468]
[1769365232849,0.24546324,87787.0,87766.0,0.27585468]
[1769365233025,0.01139133,87786.0,87766.0,0.27585468]
[1769365233229,0.24546324,87787.0,87767.0,0.09070312]
[1769365233435,0.0908662,87785.0,87767.0,0.09070312]
[1769365233660,0.15459704,87787.0,87768.0,1.10749974]
[1769365233871,0.15459704,87787.0,87768.0,1.28797936]
[1769365234532,0.00014193,87787.0,87770.0,1.10749974]
[1769365234731,0.00014193,87787.0,87772.0,0.18047962]
[1769365235362,0.00014193,87787.0,87775.0,0.18047962]
[1769365235561,0.00014193,87787.0,87777.0,0.18047962]
[1769365236302,0.0908662,87798.0,87779.0,0.18047962]
[1769365236554,0.0908662,87800.0,87781.0,0.18047962]
[1769365236744,0.0915049,87801.0,87781.0,0.18047962]
[1769365236958,0.0006387,87801.0,87782.0,1.10749974]
[1769365237187,0.0006387,87801.0,87784.0,1.10749974]
[1769365237395,0.0006387,87801.0,87787.0,0.18047962]
[1769365237598,0.0006387,87801.0,87788.0,0.11160278]
[1769365238424,0.0006387,87801.0,87781.0,0.18047962]
[1769365238643,0.0006387,87801.0,87779.0,1.10749974]
[1769365238644,0.01,87781.0,87749.0,1.10749974]
[1769365238862,0.01,87781.0,87719.0,0.85953245]
[1769365238863,0.01,87781.0,87760.0,0.12787359]
[1769365239068,1.09037536,87780.0,87761.0,0.03495351]
[1769365239477,0.01139263,87776.0,87761.0,0.03495351]
[1769365239617,0.16656956,87778.0,87756.0,0.04118193]
[1769365240042,0.16656956,87778.0,87757.0,0.00113966]
[1769365240453,0.16714741,87777.0,87757.0,0.00113966]
[1769365241118,0.16704016,87772.0,87756.0,0.04118193]
[1769365241323,0.16704016,87770.0,87757.0,0.02228019]
[1769365242305,0.16704016,87770.0,87756.0,0.04118193]
[1769365242723,0.17843357,87770.0,87756.0,0.04118193]
[1769365243059,0.17843357,87770.0,87745.0,0.00114034]
[1769365243060,0.01139354,87769.0,87745.0,0.00114034]
[1769365243294,0.01139341,87770.0,87745.0,0.00014201]
[1769365243295,0.01139484,87759.0,87745.0,0.00014201]
[1769365243448,0.16681008,87760.0,87745.0,0.00014201]
[1769365243854,0.11353717,87759.0,87745.0,0.00014201]
[1769365244063,0.16668739,87757.0,87753.0,0.05]
[1769365244297,0.16668739,87757.0,87745.0,0.00014201]
[1769365244298,0.11353717,87756.0,87745.0,0.00014201]
[1769365244505,0.11353717,87755.0,87745.0,0.00014201]
[1769365244711,0.11353717,87754.0,87745.0,0.00014201]
[1769365244962,0.11353717,87753.0,87745.0,0.00014201]
[1769365245176,0.11353717,87752.0,87745.0,0.00014201]
[1769365245379,0.00014201,87745.0,87727.0,0.18047962]
[1769365245585,0.11353717,87744.0,87728.0,0.11160278]
[1769365245792,0.11353717,87743.0,87728.0,0.2920824]
[1769365245994,0.11353717,87742.0,87728.0,0.2920824]
[1769365246124,0.00014177,87745.0,87728.0,0.2920824]
[1769365246125,0.11353717,87741.0,87728.0,0.2920824]
[1769365246340,0.11353717,87741.0,87726.0,0.04104]
[1769365246341,0.11353717,87740.0,87729.0,0.06354091]
[1769365246540,0.11353717,87739.0,87729.0,0.06354091]
[1769365246745,0.11353717,87738.0,87726.0,0.04104]
[1769365246940,0.1845953,87743.0,87726.0,0.04104]
[1769365246941,0.11357947,87737.0,87726.0,0.04104]
[1769365247174,0.11357947,87736.0,87726.0,0.04104]
[1769365247377,0.11357947,87736.0,87720.0,0.18047962]
[1769365247378,0.11357947,87735.0,87720.0,0.18047962]
[1769365247604,0.11357947,87734.0,87721.0,0.01804796]
[1769365247801,0.11357947,87733.0,87721.0,0.01804796]
[1769365248020,0.11357947,87732.0,87721.0,0.01804796]
[1769365248337,0.11357947,87731.0,87721.0,0.01804796]
[1769365248507,0.11357947,87730.0,87721.0,0.01804796]
[1769365248708,0.01139705,87742.0,87722.0,0.11160278]
[1769365248913,0.17378258,87740.0,87722.0,0.11160278]
[1769365249276,0.11354502,87739.0,87722.0,0.11160278]
[1769365249455,0.11354502,87738.0,87722.0,0.11160278]
[1769365249676,0.11354502,87737.0,87722.0,0.11160278]
[1769365249866,0.11354502,87736.0,87723.0,0.0438004]
[1769365250089,0.00014177,87745.0,87723.0,0.0438004]
[1769365250293,0.01139718,87741.0,87723.0,0.0438004]
[1769365250501,0.01139731,87740.0,87723.0,0.0438004]
[1769365250885,0.01139744,87739.0,87723.0,0.0438004]
[1769365251129,0.01139718,87741.0,87724.0,0.01974051]
[1769365251352,0.01139731,87740.0,87724.0,0.01974051]
[1769365251531,0.01139744,87739.0,87724.0,0.01974051]
[1769365251784,0.01139731,87740.0,87724.0,0.01974051]
[1769365251967,0.00924688,87744.0,87724.0,0.01974051]
[1769365252170,0.0206438,87743.0,87725.0,0.03118229]
[1769365252387,0.01139705,87742.0,87725.0,0.03118229]
[1769365252548,0.00924688,87743.0,87725.0,0.03118229]
[1769365252952,0.00924688,87743.0,87725.0,0.21521269]
[1769365253402,0.00014177,87745.0,87725.0,0.21546639]
[1769365253618,0.00014177,87745.0,87726.0,0.29338453]
[1769365253838,0.00014177,87745.0,87728.0,1.1188986]
[1769365254042,0.00014177,87745.0,87732.0,1.10749974]
[1769365254260,0.00014177,87745.0,87725.0,0.03218229]
[1769365254261,0.00014177,87745.0,87733.0,0.18406138]
[1769365254467,0.00014177,87745.0,87734.0,0.18178175]
[1769365256747,0.01153843,87745.0,87734.0,0.18178175]
[1769365257089,0.01,87734.0,87713.0,0.18178175]
[1769365257331,0.01139821,87733.0,87715.0,0.18047962]
[1769365257535,0.01,87734.0,87715.0,0.18047962]
[1769365257828,0.01139795,87735.0,87715.0,0.18047962]
[1769365258129,0.01271247,87736.0,87717.0,0.18047962]
[1769365258441,0.01139718,87741.0,87718.0,1.10749974]
[1769365258719,0.01139795,87735.0,87719.0,0.18047962]
[1769365258894,0.01139782,87736.0,87719.0,0.18047962]
[1769365259102,0.01139769,87737.0,87720.0,0.21967209]
[1769365259504,0.01139744,87739.0,87720.0,0.21967209]
[1769365259687,0.01139769,87737.0,87720.0,0.21967209]
[1769365259886,0.01139795,87735.0,87720.0,0.21967209]
[1769365260291,0.0113986,87730.0,87720.0,0.03919247]
[1769365260514,0.0113986,87730.0,87705.0,0.06118233]
[1769365260515,0.0113986,87730.0,87713.0,0.00114007]
[1769365260713,0.01139834,87732.0,87713.0,0.00114007]
[1769365260914,0.01654208,87733.0,87713.0,0.00114007]
[1769365260915,0.01654208,87733.0,87713.0,0.18161969]
[1769365261118,0.01139834,87732.0,87713.0,0.18161969]
[1769365261318,0.01654208,87733.0,87714.0,0.11160278]
[1769365261525,0.02080896,87742.0,87717.0,1.10749974]
[1769365261702,0.01139692,87743.0,87718.0,0.18161962]
[1769365261901,0.02057485,87739.0,87718.0,0.18161962]
[1769365262104,0.11330608,87738.0,87718.0,0.18161962]
[1769365262938,0.11330608,87738.0,87719.0,0.18047962]
[1769365263183,0.11330608,87738.0,87721.0,0.17728447]
[1769365263386,0.00014177,87745.0,87723.0,0.17728447]
[1769365263677,0.00014177,87745.0,87726.0,0.17728447]
[1769365263881,0.00014177,87745.0,87729.0,1.05556147]
[1769365264088,0.00014177,87745.0,87730.0,0.18644572]
[1769365264293,0.01139537,87755.0,87730.0,0.18644572]
[1769365264495,0.0113951,87757.0,87732.0,0.187566]
[1769365264733,0.01139432,87763.0,87734.0,0.187566]
[1769365264928,0.0908662,87769.0,87730.0,0.00047377]
[1769365264929,0.05696795,87769.0,87736.0,1.05556147]
[1769365265148,0.01139367,87768.0,87739.0,0.187566]
[1769365265341,0.2560938,87767.0,87743.0,0.187566]
[1769365265573,0.01139406,87765.0,87745.0,0.187566]
[1769365265817,0.01139419,87764.0,87745.0,0.187566]
[1769365265973,0.2560938,87767.0,87745.0,0.187566]
[1769365265974,0.2447,87767.0,87745.0,0.187566]
[1769365266176,0.05697226,87762.0,87745.0,0.187566]
[1769365266379,0.01139484,87759.0,87745.0,0.187566]
[1769365266579,0.01139523,87756.0,87746.0,0.02042588]
[1769365266934,0.01139497,87758.0,87746.0,0.02042588]
[1769365267310,0.01139536,87755.0,87730.0,0.00047377]
[1769365267505,0.05696966,87766.0,87731.0,0.18531744]
[1769365267684,0.01139679,87744.0,87731.0,0.18531744]
[1769365267856,0.01139692,87743.0,87731.0,0.18531744]
[1769365268057,0.01139692,87743.0,87732.0,0.01857912]
[1769365268658,0.0569807,87749.0,87730.0,0.00047377]
[1769365268856,0.01139679,87744.0,87730.0,0.00047377]
[1769365269079,0.01139692,87743.0,87730.0,0.00047377]
[1769365269456,0.01139705,87742.0,87730.0,0.00047377]
[1769365269882,0.05698522,87743.0,87730.0,0.00047377]
[1769365270087,0.01139731,87740.0,87730.0,0.00047377]
[1769365270490,0.01139718,87741.0,87730.0,0.00047377]
[1769365270712,0.01139731,87740.0,87730.0,0.00047377]
[1769365270901,0.01139731,87740.0,87712.0,0.30295359]
[1769365270902,0.01139808,87734.0,87713.0,0.18598053]
[1769365271136,0.0113986,87730.0,87715.0,0.18598053]
[1769365271726,0.01139847,87731.0,87715.0,0.18598053]
[1769365271941,0.01139847,87731.0,87716.0,0.18598053]
[1769365272144,0.01139873,87729.0,87716.0,0.18598053]
[1769365272372,0.01139873,87729.0,87701.0,0.10402815]
[1769365272373,0.01139938,87724.0,87708.0,1.05556147]
[1769365272588,0.01139925,87725.0,87709.0,0.18598053]
[1769365272739,0.01139925,87725.0,87715.0,0.001]
[1769365272962,0.01140016,87718.0,87715.0,0.001]
[1769365273159,0.01139964,87722.0,87715.0,0.001]
[1769365273439,0.02974637,87728.0,87715.0,0.01969805]
[1769365273665,0.01834751,87728.0,87706.0,0.01652105]
[1769365273911,0.01139912,87726.0,87703.0,1.05556147]
[1769365274118,0.06839876,87721.0,87705.0,0.18598053]
[1769365274344,0.0113999,87720.0,87705.0,0.18598053]
[1769365274576,0.01802344,87728.0,87705.0,0.18598053]
[1769365274826,0.34191869,87741.0,87705.0,0.18598053]
[1769365274827,0.01140068,87714.0,87706.0,0.02270205]
[1769365275029,0.0114012,87710.0,87701.0,0.04104]
[1769365275460,0.10382556,87709.0,87701.0,0.04104]
[1769365275666,0.01140107,87711.0,87701.0,0.04104]
[1769365275885,0.01140107,87711.0,87702.0,0.02332982]
[1769365276390,0.01140094,87712.0,87702.0,0.02332982]
[1769365277012,0.01140068,87714.0,87702.0,0.02332982]
[1769365277448,0.01140094,87712.0,87702.0,0.02332982]
[1769365277675,0.0114012,87710.0,87702.0,0.02332982]
[1769365277884,0.01140068,87714.0,87701.0,0.04104]